bitfinex/quotes_ETHUSD_20250110
["timestamp","ask_amount","ask_price","bid_price","bid_amount"]
[1736528417365,3.07296,3254.2,3253.1,3.07396]
[1736528417563,3.07296,3254.2,3252.8,3.0]
[1736528417564,3.07296,3254.2,3253.3,0.8041]
[1736528418489,3.08014,3254.6,3253.4,0.03073447]
[1736528418490,3.07265,3254.6,3253.4,0.03073447]
[1736528418891,0.63972478,3254.9,3253.4,0.03073447]
[1736528419077,3.07241,3254.8,3253.8,0.7894]
[1736528419278,0.0075,3254.7,3253.9,3.10393921]
[1736528419604,3.07258,3254.6,3253.9,0.38933392]
[1736528419808,3.07258,3254.6,3253.9,0.03072897]
[1736528419968,3.07258,3254.6,3253.8,0.7894]
[1736528420167,0.015,3254.8,3253.8,0.7894]
[1736528420369,0.015,3254.8,3253.9,0.03072926]
[1736528420669,3.07258,3254.6,3253.8,0.7894]
[1736528420887,3.07268,3254.5,3253.8,0.7894]
[1736528422368,0.015,3254.8,3253.8,0.7894]
[1736528422635,3.07288,3254.3,3253.8,0.7894]
[1736528422848,3.07305,3254.1,3253.8,0.7894]
[1736528424584,3.0722,3255.0,3253.8,0.7894]
[1736528424829,0.45136729,3255.0,3253.9,0.03072924]
[1736528425031,3.07246,3254.8,3253.9,0.03072924]
[1736528425223,3.07238,3254.8,3253.9,0.03072707]
[1736528425551,0.0075,3254.6,3253.8,0.7894]
[1736528425687,0.015,3254.5,3253.8,0.7894]
[1736528425893,3.07284,3254.4,3253.8,0.7894]
[1736528426792,3.07286,3254.3,3253.8,0.7894]
[1736528427188,3.07268,3254.5,3253.8,0.7894]
[1736528427489,5.95402785,3255.0,3253.9,0.03073176]
[1736528427694,3.0725,3254.7,3253.9,0.03073176]
[1736528427931,3.0725,3254.7,3253.9,0.42008394]
[1736528428250,3.07266,3254.6,3253.9,0.42008394]
[1736528428446,3.07266,3254.6,3253.9,0.03073176]
[1736528429448,0.0225,3254.9,3253.9,0.03073176]
[1736528429623,0.0225,3254.9,3253.8,0.7894]
[1736528429624,3.07314,3254.0,3253.8,0.7894]
[1736528429830,3.07298,3254.2,3253.8,0.7894]
[1736528430038,2.88182785,3254.8,3253.8,0.7894]
[1736528430236,3.07264,3254.6,3253.8,0.7894]
[1736528430562,3.07249,3254.7,3253.9,0.03072885]
[1736528431056,3.07249,3254.7,3253.8,0.7894]
[1736528431995,3.07249,3254.7,3253.8,1.40541338]
[1736528432675,3.0721,3255.1,3254.0,3.0]
[1736528432808,0.38963,3255.1,3254.1,0.7162285]
[1736528433008,0.015,3255.1,3254.1,0.7162285]
[1736528433354,3.07219,3255.0,3254.1,3.7162285]
[1736528433657,8.45201,3255.2,3254.4,0.7818]
[1736528433860,8.45201,3255.2,3254.5,0.0307228]
[1736528434061,5.38,3255.2,3254.6,3.0]
[1736528434357,5.38,3255.4,3254.8,0.7882]
[1736528434557,8.45181,3255.5,3254.9,0.03071951]
[1736528434770,5.38,3255.5,3254.9,0.03071951]
[1736528434899,5.38,3255.5,3254.8,3.86058]
[1736528435094,3.07158,3255.7,3254.9,0.386058]
[1736528435299,3.07164,3255.6,3254.8,0.7882]
[1736528436859,3.07148,3255.8,3254.8,0.7882]
[1736528437065,5.38,3256.0,3255.0,3.82913]
[1736528437204,3.07137,3255.9,3255.2,0.757]
[1736528437920,5.38,3256.0,3255.3,0.03071506]
[1736528438302,5.38,3256.0,3255.4,0.757]
[1736528438497,3.07102,3256.3,3255.4,3.757]
[1736528438803,3.07102,3256.3,3255.5,0.03071207]
[1736528439559,3.07102,3256.3,3255.4,0.757]
[1736528439768,0.0225,3256.2,3255.4,0.757]
[1736528439923,3.07163,3255.6,3255.4,0.757]
[1736528440109,0.29043279,3256.1,3255.4,0.757]
[1736528440601,3.07153,3255.7,3255.1,0.8208]
[1736528440861,0.015,3255.7,3255.1,0.8208]
[1736528441024,3.07199,3255.3,3255.1,0.8208]
[1736528441219,5.38,3255.5,3254.4,0.8208]
[1736528441402,5.91875,3255.5,3254.4,0.8208]
[1736528441606,3.07216,3255.1,3254.4,0.8208]
[1736528441918,3.07216,3255.1,3254.4,1.44683836]
[1736528442505,3.07216,3255.1,3254.5,0.03072172]
[1736528443028,5.38,3255.5,3254.4,1.44683836]
[1736528443209,3.07266,3254.5,3254.4,0.8208]
[1736528443764,2.88182785,3255.1,3254.4,0.8208]
[1736528443923,3.07257,3254.6,3254.4,0.8208]
[1736528444170,3.07266,3254.5,3254.4,0.8208]
[1736528445055,5.95399785,3255.1,3254.4,0.8208]
[1736528445248,3.07246,3254.8,3254.4,0.8208]
[1736528446314,5.38,3255.2,3254.4,0.8208]
[1736528446458,8.45202,3255.2,3254.5,0.03072468]
[1736528447311,5.38,3255.2,3254.6,0.775]
[1736528447509,5.38,3255.2,3254.7,0.03072013]
[1736528447936,5.38,3255.2,3254.7,0.03072016]
[1736528448051,5.95340785,3255.7,3254.7,0.03072016]
[1736528448253,1.13334079,3255.6,3254.7,0.03072016]
[1736528448453,1.13334079,3255.6,3254.6,0.775]
[1736528448697,3.07202,3255.2,3254.6,0.775]
[1736528448951,3.07183,3255.4,3254.6,0.775]
[1736528449513,3.07201,3255.2,3254.6,0.775]
[1736528449650,1.13334079,3255.6,3254.6,0.775]
[1736528449651,3.07186,3255.4,3254.6,0.775]
[1736528450154,3.07198,3255.3,3254.6,1.52113529]
[1736528450354,8.26182785,3255.4,3254.6,0.775]
[1736528450878,3.07233,3254.9,3254.6,0.775]
[1736528451305,3.07239,3254.8,3254.6,0.775]
[1736528451601,3.07232,3254.9,3254.6,0.775]
[1736528451805,0.0075,3255.3,3254.6,0.775]
[1736528452108,0.0075,3255.3,3253.9,3.08066]
[1736528452109,2.88182785,3254.8,3254.2,0.775]
[1736528452278,3.07266,3254.6,3254.2,0.775]
[1736528453066,3.07276,3254.4,3254.2,0.775]
[1736528453703,3.07261,3254.6,3254.2,0.775]
[1736528454470,5.38,3254.7,3254.2,0.775]
[1736528454471,3.07275,3254.5,3254.2,0.775]
[1736528454680,5.38,3254.7,3254.2,0.775]
[1736528455475,5.38,3254.7,3254.3,0.03072626]
[1736528456099,3.07258,3254.6,3254.3,0.03072626]
[1736528456409,5.38,3254.7,3254.3,0.03072626]
[1736528457108,8.45256,3254.7,3254.3,0.03072626]
[1736528458074,5.38,3254.7,3254.3,0.03072626]
[1736528458377,3.0726,3254.6,3254.2,0.775]
[1736528458712,5.38,3254.7,3254.2,0.775]
[1736528458918,9.58595379,3254.7,3254.2,0.775]
[1736528459086,8.45253,3254.7,3254.2,0.775]
[1736528459488,5.38,3254.7,3254.3,0.03072633]
[1736528459893,8.45248,3254.7,3254.3,0.03072633]
[1736528460216,8.45248,3254.7,3254.2,0.775]
[1736528460217,5.38,3254.7,3254.2,0.775]
[1736528460416,8.45252,3254.7,3254.3,0.03072542]
[1736528460921,3.07258,3254.6,3254.3,0.03072542]
[1736528461124,3.07258,3254.6,3254.2,0.775]
[1736528461618,5.38,3254.7,3254.4,0.8258]
[1736528461922,5.38,3254.7,3254.6,0.8258]
[1736528462081,5.38,3254.7,3254.6,1.21895228]
[1736528462277,5.38,3255.8,3255.0,3.0]
[1736528462479,8.45125,3256.0,3255.2,0.8182]
[1736528462722,5.38,3256.0,3255.4,0.8182]
[1736528462922,5.38,3256.0,3255.5,0.03071236]
[1736528463487,5.38,3256.0,3255.4,0.8182]
[1736528463797,0.0075,3257.1,3255.7,0.8302]
[1736528463798,3.07073,3256.6,3255.7,0.8302]
[1736528464003,3.07078,3256.5,3255.7,0.8302]
[1736528464728,8.26182785,3256.8,3255.7,3.8302]
[1736528464899,8.45051,3256.8,3255.9,0.7978]
[1736528465228,5.38,3256.8,3256.0,3.10194633]
[1736528465390,5.38,3256.8,3256.1,1.10799463]
[1736528465591,5.38,3256.8,3256.2,0.03070514]
[1736528465792,5.38,3256.8,3256.1,1.10799463]
[1736528466387,8.26182785,3256.8,3256.1,1.10799463]
[1736528466590,3.07101,3256.3,3256.1,0.7978]
[1736528466884,3.07101,3256.3,3254.8,5.96161785]
[1736528466885,0.7867,3256.7,3255.4,0.8207]
[1736528467087,3.07089,3256.4,3255.4,0.8207]
[1736528467400,3.07089,3256.4,3255.3,3.34686]
[1736528467401,3.07081,3256.5,3255.6,0.0075]
[1736528467601,3.07081,3256.5,3255.7,0.8207]
[1736528468523,8.26182785,3256.8,3255.7,0.8207]
[1736528468831,3.07087,3256.4,3255.7,0.8207]
[1736528468985,2.88182785,3256.5,3255.7,0.8207]
[1736528469184,3.07165,3255.6,3255.1,0.7929]
[1736528469388,5.95321785,3255.9,3255.1,0.7929]
[1736528469650,2.88182785,3255.6,3255.1,0.7929]
[1736528469812,3.07217,3255.1,3254.6,0.7929]
[1736528470499,3.17001064,3255.6,3254.6,0.7929]
[1736528470705,3.0719,3255.4,3254.7,0.03072145]
[1736528471099,3.07196,3255.3,3254.6,0.7929]
[1736528471322,3.07203,3255.2,3254.6,0.7929]
[1736528471834,3.07184,3255.4,3254.6,0.7929]
[1736528472003,3.07157,3255.7,3254.7,3.10318023]
[1736528472187,5.38,3255.9,3254.8,3.46197802]
[1736528472389,5.38,3255.9,3255.0,3.07218]
[1736528472590,5.38,3255.9,3254.9,0.82361776]
[1736528472591,8.45135,3255.9,3255.1,0.03071457]
[1736528473134,8.26182785,3255.9,3254.9,0.7929]
[1736528473346,3.07173,3255.5,3254.9,0.7929]
[1736528473540,3.07186,3255.4,3254.9,0.7929]
[1736528473738,2.88182785,3255.6,3254.9,0.7929]
[1736528474032,3.07199,3255.3,3254.4,0.7929]
[1736528474293,3.0721,3255.1,3254.4,0.7929]
[1736528474439,3.07238,3254.8,3254.4,0.7929]
[1736528475303,3.07259,3254.6,3254.4,0.7929]
[1736528475532,3.07259,3254.6,3253.7,0.7657]
[1736528476052,5.38,3254.7,3253.8,0.62447703]
[1736528476279,5.38,3254.7,3254.1,0.7657]
[1736528476940,6.07188,3255.4,3254.3,0.7648]
[1736528477157,3.0721,3255.2,3254.3,0.7648]
[1736528477315,2.88182785,3255.2,3254.3,0.7648]
[1736528477514,3.07239,3254.8,3254.3,0.7648]
[1736528477772,3.07222,3255.0,3254.3,0.7648]
[1736528478129,5.38,3255.1,3254.3,0.7648]
[1736528478324,3.0724,3254.8,3254.3,0.7648]
[1736528479355,0.015,3254.8,3253.9,0.8112]
[1736528479550,2.88182785,3254.6,3253.9,0.8112]
[1736528479714,3.07266,3254.5,3253.9,0.8112]
[1736528480493,0.0075,3254.6,3253.9,0.8112]
[1736528480761,5.687997,3254.5,3253.9,0.8112]
[1736528480918,3.07309,3254.1,3253.9,0.8112]
[1736528481114,3.07316,3254.0,3253.2,0.7522]
[1736528481315,8.45281,3254.4,3253.2,0.7522]
[1736528481554,3.07297,3254.2,3253.2,4.45033146]
[1736528481714,5.38,3254.4,3253.3,0.44578315]
[1736528481911,3.07309,3254.1,3253.2,1.37651146]
[1736528482340,3.07314,3254.0,3253.2,1.37651146]
[1736528482726,5.38,3254.0,3253.2,0.7522]
[1736528483049,3.07341,3253.8,3253.2,0.7522]
[1736528484356,5.38,3254.0,3253.2,0.7522]
[1736528484357,3.07323,3253.9,3253.2,0.7522]
[1736528484544,3.07323,3253.9,3252.9,0.7723]
[1736528484545,5.38,3253.4,3252.9,0.7723]
[1736528484744,3.07391,3253.2,3252.4,0.7723]
[1736528484918,8.45374,3253.4,3252.5,0.61951096]
[1736528485318,3.07383,3253.3,3252.5,0.61951096]
[1736528485818,5.38,3253.4,3252.6,0.4466451]
[1736528486043,5.38,3253.4,3252.7,0.7723]
[1736528486655,0.0075,3253.1,3252.2,0.7723]
[1736528486956,8.45418,3252.9,3252.2,0.7723]
[1736528487849,3.07342,3253.7,3252.8,3.07425]
[1736528488050,3.07323,3254.0,3252.9,4.137895]
[1736528488363,3.07297,3254.2,3253.2,3.07386]
[1736528488536,3.07297,3254.2,3253.4,0.7563]
[1736528488740,3.0,3254.3,3253.4,0.7563]
[1736528488962,3.07305,3254.1,3253.4,0.7563]
[1736528489127,3.380355,3254.1,3253.4,0.7563]
[1736528489963,0.307305,3254.1,3253.4,0.7563]
[1736528490365,3.380365,3254.1,3253.4,0.7563]
[1736528491339,3.07315,3254.0,3253.4,0.7563]
[1736528491539,3.07315,3254.0,3252.5,3.07446]
[1736528491540,0.7568,3253.9,3252.8,0.7722]
[1736528491757,3.07351,3253.7,3252.8,3.84644]
[1736528492076,6.48987784,3254.3,3253.1,0.7722]
[1736528492447,0.015,3253.8,3253.1,0.7722]
[1736528492764,3.07356,3253.6,3253.1,0.7722]
[1736528492923,5.38,3253.7,3253.1,0.7722]
[1736528493458,8.45345,3253.7,3253.1,0.7722]
[1736528494183,5.38,3253.7,3253.1,0.7722]
[1736528494586,5.38,3253.7,3253.1,1.156836]
[1736528494784,3.07354,3253.6,3253.1,0.7722]
[1736528495884,5.38,3253.7,3253.2,0.0307385]
[1736528496213,5.38,3254.1,3253.2,3.10455498]
[1736528496515,5.38,3254.1,3253.1,0.7722]
[1736528496516,0.0225,3254.0,3253.1,0.7722]
[1736528496644,3.07361,3253.6,3253.1,0.7722]
[1736528497255,0.0225,3253.8,3253.1,0.7722]
[1736528497456,3.07351,3253.7,3253.1,0.7722]
[1736528497690,3.07362,3253.5,3253.1,0.7722]
[1736528499667,3.07357,3253.6,3253.1,0.7722]
[1736528499863,5.38,3253.3,3252.7,0.8261]
[1736528500066,8.45386,3253.3,3252.7,0.8261]
[1736528500281,5.38,3253.3,3252.7,0.8261]
[1736528500657,8.45387,3253.3,3252.7,0.8261]
[1736528501163,5.38,3253.3,3252.7,0.8261]
[1736528501890,8.45381,3253.3,3252.7,0.8261]
[1736528502091,6.225381,3253.3,3252.7,0.8261]
[1736528502299,9.299221,3253.3,3252.7,0.8261]
[1736528503155,8.45384,3253.3,3252.7,0.8261]
[1736528504193,5.38,3253.3,3252.7,0.8261]
[1736528505117,5.38,3253.4,3252.7,0.8261]
[1736528505423,5.38,3253.4,3252.9,0.8072]
[1736528505976,8.45374,3253.4,3252.9,0.8072]
[1736528506583,5.38,3253.4,3252.9,0.8072]
[1736528506978,5.38,3253.4,3252.9,1.19841998]
[1736528507519,5.38,3253.4,3252.9,0.8072]
[1736528508826,8.45371,3253.4,3252.9,0.8072]
[1736528509522,5.38,3253.4,3252.9,0.8072]
[1736528510285,5.38,3253.4,3252.9,3.88133]
[1736528510723,5.38,3253.4,3253.0,3.07404]
[1736528510945,5.38,3253.4,3253.1,0.388124]
[1736528511091,0.0075,3254.2,3253.1,0.388124]
[1736528511092,5.38,3253.8,3253.2,0.7511]
[1736528511296,5.38,3254.2,3253.5,0.7511]
[1736528511515,5.38,3254.2,3253.7,0.7511]
[1736528512416,3.07325,3253.9,3253.4,0.8235]
[1736528512616,5.38,3254.2,3253.4,0.8235]
[1736528512823,5.38,3254.2,3253.4,3.89713]
[1736528513043,5.38,3254.2,3253.5,3.8786]
[1736528513202,5.38,3254.2,3253.5,3.90933225]
[1736528513403,5.38,3254.2,3253.7,0.8161]
[1736528513645,5.38,3254.9,3254.2,0.8161]
[1736528513844,9.20456,3255.4,3254.3,0.03072636]
[1736528514077,3.82432,3255.7,3254.7,3.88852]
[1736528514216,0.920432,3255.6,3254.7,3.88852]
[1736528514424,3.07173,3255.5,3254.7,0.8161]
[1736528514620,2.89433776,3255.5,3254.7,0.8161]
[1736528515373,3.07209,3255.2,3254.7,0.8161]
[1736528515590,0.0075,3255.4,3254.7,0.8161]
[1736528515883,0.0075,3254.6,3254.0,0.8304]
[1736528516043,3.07293,3254.3,3254.0,0.8304]
[1736528517123,2.87933776,3254.6,3253.5,1.43428138]
[1736528517316,3.07296,3254.2,3253.5,1.43428138]
[1736528517559,3.07296,3254.2,3253.5,0.8304]
[1736528517779,0.307296,3254.2,3253.5,0.8304]
[1736528517982,3.07337,3253.8,3252.9,3.07415]
[1736528518123,3.07337,3253.8,3253.3,0.8304]
[1736528520466,3.07315,3254.0,3253.3,0.8304]
[1736528520711,3.07324,3253.9,3253.3,0.8304]
[1736528521006,8.86734388,3254.4,3253.3,0.8304]
[1736528521007,5.38,3254.4,3253.3,0.8304]
[1736528521157,3.07289,3254.3,3253.5,0.7845]
[1736528521353,5.38,3254.4,3253.6,0.4196244]
[1736528521556,5.38,3254.4,3253.6,0.38889262]
[1736528521830,5.38,3254.4,3253.6,0.41962442]
[1736528522122,5.38,3254.4,3253.7,3.83888]
[1736528522258,5.38,3254.8,3254.2,3.0729]
[1736528522459,5.38,3254.8,3254.3,3.86902495]
[1736528522712,5.38,3254.8,3254.3,0.79622495]
[1736528523009,5.38,3254.8,3254.3,3.86904495]
[1736528523209,5.38,3255.1,3254.4,0.3869045]
[1736528523520,8.4521,3255.1,3254.4,0.3869045]
[1736528523821,3.07219,3255.0,3254.3,0.7655]
[1736528523955,3.0723,3254.9,3254.3,0.7655]
[1736528524355,0.8243,3255.0,3254.3,0.7655]
[1736528524653,0.0075,3254.4,3253.2,0.7626]
[1736528524962,3.07304,3254.1,3253.2,0.7626]
[1736528525321,3.07371,3253.4,3252.9,0.60426215]
[1736528525462,3.07371,3253.4,3252.9,0.7626]
[1736528525660,3.07381,3253.3,3252.9,0.7626]
[1736528525975,3.8858,3253.6,3252.9,0.7626]
[1736528526309,5.38,3253.8,3252.9,0.7626]
[1736528526512,0.0075,3253.7,3252.9,0.7626]
[1736528526696,3.07362,3253.5,3252.9,0.7626]
[1736528527806,3.07371,3253.4,3252.9,0.7626]
[1736528527969,0.0075,3253.5,3252.9,0.7626]
[1736528528175,3.07375,3253.4,3252.9,0.7626]
[1736528528391,0.614727,3253.4,3252.9,0.7626]
[1736528528714,0.0075,3253.5,3252.9,0.7626]
[1736528529075,3.07392,3253.2,3252.9,0.7626]
[1736528529709,0.0075,3253.4,3252.5,0.8263]
[1736528529868,0.0075,3253.3,3252.5,0.8263]
[1736528530271,5.38,3253.2,3252.5,0.8263]
[1736528530519,0.53875,3253.1,3252.5,0.8263]
[1736528530821,5.38,3253.0,3251.9,0.8176]
[1736528530959,3.07417,3252.9,3251.9,0.8176]
[1736528531153,5.38,3253.0,3251.9,3.89267]
[1736528531722,3.07431,3252.8,3251.9,1.4223822]
[1736528531857,3.07431,3252.8,3252.0,0.44975622]
[1736528532058,8.4541,3253.0,3252.2,0.8085]
[1736528532478,3.07419,3252.9,3252.2,0.8085]
[1736528533017,5.38,3253.0,3252.2,0.8085]
[1736528533719,5.38,3253.0,3252.3,0.03074467]
[1736528533863,5.38,3253.5,3252.7,0.794]
[1736528534298,5.38,3253.5,3252.7,1.180843]
[1736528534506,3.07371,3253.4,3252.7,1.180843]
[1736528534717,0.0225,3253.4,3252.7,0.794]
[1736528534891,0.0075,3253.2,3252.7,0.794]
[1736528535089,3.07408,3253.0,3251.9,0.8271]
[1736528535326,3.07424,3252.9,3251.9,3.90222]
[1736528535631,3.07432,3252.8,3251.9,1.217322]
[1736528535922,3.07432,3252.8,3251.9,4.292432]
[1736528536077,3.07422,3252.9,3252.0,0.6192551]
[1736528536931,6.1549,3253.1,3252.0,0.6192551]
[1736528536932,3.07429,3252.8,3252.0,0.6192551]
[1736528537493,6.1549,3253.1,3252.0,0.6192551]
[1736528537727,3.07412,3253.0,3252.0,0.6192551]
[1736528538071,3.0225,3253.0,3251.9,0.8271]
[1736528538291,3.07487,3252.2,3251.9,0.8271]
[1736528538481,3.07487,3252.2,3251.6,0.7573]
[1736528538687,3.07495,3252.1,3251.6,0.7573]
[1736528539003,3.0751,3252.0,3251.6,0.7573]
[1736528540491,3.07512,3251.9,3251.6,0.7573]
[1736528540702,3.07531,3251.7,3251.3,0.8213]
[1736528540904,3.07548,3251.6,3251.3,0.8213]
[1736528541124,3.07548,3251.6,3250.9,1.0]
[1736528541125,0.0225,3251.4,3250.9,1.0]
[1736528541363,3.07597,3251.0,3250.9,1.0]
[1736528542391,12.02847,3251.0,3250.9,1.0]
[1736528542807,0.7723,3250.2,3248.9,0.7943]
[1736528543028,3.49484388,3250.0,3248.9,0.7943]
[1736528543250,3.07728,3249.7,3248.9,0.7943]
[1736528543451,3.0075,3249.8,3248.9,0.7943]
[1736528543757,5.38,3249.3,3248.9,0.7943]
[1736528543909,3.07775,3249.2,3248.6,0.6289339]
[1736528544114,3.07775,3249.2,3248.5,0.8325]
[1736528544445,5.38,3249.3,3248.5,0.8325]
[1736528544794,5.38,3249.3,3248.5,4.36502163]
[1736528545410,5.38,3249.3,3248.6,3.07824]
[1736528545612,5.38,3249.7,3248.8,0.8327]
[1736528545860,5.38,3249.7,3249.2,3.91034]
[1736528546148,5.38,3249.7,3249.2,3.94111325]
[1736528546287,5.38,3249.7,3249.2,4.33522458]
[1736528546841,5.38,3249.7,3249.2,1.25758458]
[1736528547045,5.38,3249.7,3249.3,0.03077121]
[1736528547209,3.48734388,3250.7,3249.5,0.0075]
[1736528547414,6.0764,3250.6,3249.6,3.07724]
[1736528547746,3.48734388,3250.7,3249.7,3.07719]
[1736528548043,6.56368388,3250.7,3249.5,3.08488]
[1736528548351,6.56368388,3250.7,3249.6,3.52754128]
[1736528548352,4.68171227,3250.7,3249.6,3.52754128]
[1736528548538,7.75798227,3250.7,3249.6,3.52754128]
[1736528548915,1.19436839,3250.7,3249.8,3.07709]
[1736528549092,0.0075,3250.8,3249.9,3.86267]
[1736528549493,3.0837,3250.8,3249.9,0.7857]
[1736528550548,0.0225,3250.8,3249.9,0.7857]
[1736528550858,3.015,3250.2,3249.5,0.797]
[1736528551012,3.077,3250.0,3249.0,0.7501]
[1736528551218,5.38,3250.0,3249.1,0.613416]
[1736528551400,5.38,3250.0,3249.1,3.691176]
[1736528551596,5.38,3250.0,3249.1,0.613416]
[1736528551810,0.538,3249.9,3249.1,0.613416]
[1736528552035,5.918,3249.9,3249.0,0.7501]
[1736528552195,0.0075,3249.8,3249.0,0.7501]
[1736528552397,3.08462,3249.8,3249.0,0.7501]
[1736528553513,5.918,3249.9,3249.0,0.7501]
[1736528553719,5.38,3249.9,3249.1,0.03077468]
[1736528553939,5.38,3249.9,3249.2,3.07766]
[1736528554513,5.38,3249.9,3249.1,0.03077468]
[1736528554851,5.654,3250.4,3249.6,3.07727]
[1736528555065,3.07642,3250.6,3249.7,0.03076864]
[1736528555066,5.38,3250.5,3249.7,0.03076864]
[1736528555213,5.38,3250.5,3249.9,0.8032]
[1736528555422,5.38,3250.7,3250.0,0.03076822]
[1736528556054,5.38,3250.7,3249.9,0.8032]
[1736528556055,3.07636,3250.6,3249.9,0.8032]
[1736528556416,5.38,3250.7,3250.0,3.10759836]
[1736528556600,5.38,3251.2,3250.0,0.03076836]
[1736528556798,0.6209,3251.1,3250.0,0.39109284]
[1736528557041,5.38,3251.3,3250.2,3.07665]
[1736528557307,0.829,3251.8,3250.2,3.07665]
[1736528557308,5.38,3251.9,3251.1,0.8138]
[1736528557444,5.38,3251.9,3251.1,3.88965]
[1736528557796,5.38,3251.9,3251.2,0.03075303]
[1736528557950,5.38,3251.9,3251.5,3.07541]
[1736528558156,5.38,3251.9,3251.2,0.03075303]
[1736528558157,5.38,3251.9,3251.2,0.0075]
[1736528558357,5.38,3251.9,3251.3,3.465363]
[1736528558557,5.38,3251.9,3251.4,3.10629108]
[1736528558997,5.38,3251.9,3251.4,0.03075108]
[1736528559141,6.1341,3252.9,3251.6,0.8274]
[1736528559340,7.85194,3254.3,3251.9,3.07503]
[1736528559341,5.38,3253.0,3251.9,3.07503]
[1736528559588,3.07431,3252.8,3251.7,3.07529]
[1736528559884,3.07445,3252.7,3251.6,0.8274]
[1736528560089,3.07445,3252.7,3251.7,3.07526]
[1736528560399,0.0075,3252.8,3251.7,3.10601812]
[1736528560544,0.0075,3252.8,3251.7,3.07527]
[1736528560887,3.0745,3252.6,3251.6,0.8274]
[1736528561099,0.35455,3252.7,3251.7,0.03074897]
[1736528561244,0.35455,3252.7,3251.8,3.07518]
[1736528561598,0.35455,3252.7,3251.9,3.10586898]
[1736528561746,0.0075,3252.8,3251.9,0.03074898]
[1736528561747,3.08177,3252.8,3251.9,0.03074898]
[1736528562494,3.0,3252.9,3251.9,0.03074898]
[1736528562646,3.0,3252.9,3252.1,3.07485]
[1736528562845,3.0,3252.9,3252.1,3.10559601]
[1736528563294,6.07419,3252.9,3252.0,0.8289]
[1736528563591,1.145419,3252.8,3252.0,0.8289]
[1736528563788,6.07419,3252.9,3252.0,0.8289]
[1736528564159,3.0,3252.9,3252.1,0.03074603]
[1736528564746,5.38,3253.0,3252.1,3.10564603]
[1736528564943,9.20792,3253.3,3252.2,3.07482]
[1736528565175,0.7541,3253.3,3252.4,3.07459]
[1736528565346,4.164171,3253.3,3252.4,3.07459]
[1736528565792,3.07402,3253.1,3252.0,3.90392]
[1736528565992,3.0741,3253.0,3252.0,3.90392]
[1736528566180,3.08898,3253.2,3252.1,3.10566399]
[1736528566375,3.08898,3253.2,3252.2,3.07481]
[1736528566591,3.5142951,3253.2,3252.2,3.07481]
[1736528566950,3.4992951,3253.2,3252.3,0.03074534]
[1736528567214,0.4253151,3253.2,3252.3,0.03074534]
[1736528567351,0.0225,3253.6,3252.4,3.07465]
[1736528567546,0.015,3253.6,3252.7,0.7889]
[1736528568167,3.08072,3254.0,3252.9,3.07416]
[1736528568380,5.38,3254.0,3253.2,0.7889]
[1736528568884,0.7844,3254.4,3253.5,3.07354]
[1736528569101,0.923697,3254.4,3253.6,3.10423225]
[1736528569282,0.923697,3254.4,3253.7,3.07342]
[1736528569483,0.923697,3254.4,3253.5,3.0736]
[1736528569873,0.923697,3254.4,3253.6,0.03073201]
[1736528570396,5.38,3254.6,3253.6,0.03073201]
[1736528570602,5.38,3254.6,3253.7,3.07337]
[1736528570897,5.38,3254.6,3253.8,0.7712]
[1736528571410,3.07266,3254.5,3253.7,0.03073059]
[1736528571574,3.07266,3254.5,3253.5,0.8241]
[1736528571774,3.917926,3254.5,3253.5,0.8241]
[1736528571986,3.917926,3254.5,3253.5,3.89766]
[1736528572324,3.917926,3254.5,3253.2,0.62262128]
[1736528572325,0.8196,3254.1,3253.2,0.62262128]
[1736528572457,3.08067,3254.0,3253.1,0.7742]
[1736528572662,0.390027,3253.9,3253.1,0.7742]
[1736528573016,3.8243,3254.4,3253.5,3.07359]
[1736528573161,5.38,3254.5,3253.6,0.03073304]
[1736528573361,5.38,3255.0,3254.6,3.07255]
[1736528573567,5.38,3255.5,3254.7,0.03072445]
[1736528573805,5.38,3255.6,3254.7,0.03072445]
[1736528574108,5.99591,3255.6,3254.7,0.03072445]
[1736528574411,3.07192,3255.3,3254.4,0.8086]
[1736528575109,3.08672,3255.5,3254.5,0.03072349]
[1736528575415,0.015,3255.5,3254.4,0.8086]
[1736528575563,3.07197,3255.3,3254.4,0.8086]
[1736528575763,0.308697,3255.3,3254.4,3.88135]
[1736528575963,5.38,3255.6,3254.9,3.07228]
[1736528576209,5.38,3255.6,3255.0,3.07218]
[1736528576378,5.38,3255.6,3254.7,3.1031194]
[1736528576730,5.38,3255.6,3254.6,0.8243]
[1736528577014,3.07187,3255.4,3254.6,0.8243]
[1736528577317,0.307937,3255.3,3254.6,0.8243]
[1736528577611,1.091437,3255.3,3254.6,0.8243]
[1736528577775,3.07201,3255.2,3254.6,0.8243]
[1736528577964,0.0075,3255.5,3254.6,0.8243]
[1736528578163,0.0075,3255.5,3254.6,3.89685]
[1736528578614,3.07926,3255.5,3254.6,0.8243]
[1736528578920,3.07219,3255.1,3254.1,0.8165]
[1736528579064,8.45241,3254.8,3254.1,0.8165]
[1736528579413,0.015,3254.7,3253.7,0.8165]
[1736528579616,3.07265,3254.6,3253.7,0.8165]
[1736528579968,6.1635,3254.8,3253.7,0.8165]
[1736528579969,9.23589,3254.8,3253.7,3.88992]
[1736528580134,9.23589,3254.8,3253.8,3.10405148]
[1736528580279,0.923589,3254.7,3253.8,3.10405148]